[Event "New York Summer GM-A 2022"]
[Site "New York"]
[Date "2022.07.08"]
[Round "1.1"]
[White "Lu, Maximillian"]
[Black "Zhou, Liran"]
[Result "1-0"]
[ECO "E12"]
[WhiteElo "2398"]
[BlackElo "2393"]
[Annotator "TA"]
[PlyCount "167"]
[EventDate "2022.07.08"]
[EventType "tourn"]
[EventCountry "USA"]
[SourceTitle "playchess.com"]
[Source "ChessBase"]
[SourceQuality "1"]
[TimeControl "5400+30"]

{[%evp 16,167,9,0,47,29,24,20,103,94,86,87,93,85,81,83,88,76,82,87,77,77,85,83,87,87,87,87,84,79,87,87,83,82,85,79,111,107,115,117,133,88,86,76,120,117,120,107,216,216,289,281,260,275,283,320,314,285,347,341,341,340,303,262,271,269,261,238,231,202,226,191,287,241,253,233,240,220,205,143,143,143,143,133,118,118,29957,29957,29962,29961,11068,8746,29966,2599,984,0,29953,29962,29973,29974,29974,29972,29970,29974,29974,29975,29975,5724,29966,0,29974,0,29968,29962,29974,29975,29975,29976,29974,29976,29977,29978,29978,29979,29980,29977,29975,0,29980,29981,29983,29984,29984,29983,29981,0,29984,29985,29986,29984,29987,29988,29988,29988,29989,29989,29989,29989,29991,29992,29992,29993,29997,5034]} 1. d4 {[%emt 0:00:14]} Nf6 {[%emt 0:00:11]} 2. c4 {[%emt 0:00:11]} e6 {[%emt 0:00:08]} 3. Nf3 {[%emt 0:00:16]} b6 {[%emt 0:00:44]} 4. a3 {[%emt 0:00:08]} Bb7 {[%emt 0:00:39]} 5. Nc3 {[%emt 0:00:03]} d5 {[%emt 0:03:29]} 6. cxd5 {[%emt 0:00:06]} exd5 {[%emt 0:00:22]} 7. g3 {[%emt 0:02:34]} Bd6 {[%emt 0:04:53]} 8. Bg2 {[%emt 0:03:12]} O-O {[%emt 0:00:50]} 9. O-O {[%emt 0:03:03]} a6 {[%emt 0:06:45] E12: Queen's Indian: Unusual White 4th moves, 4 a3, 4 Nc3 Bb7 5 a3 and 4 Nc3 Bb7 .} (9... Re8 $11 {is more appropriate.}) 10. Qb3 {[%emt 0:06:29]} Nbd7 {[%emt 0:04:25]} 11. Nh4 {[%emt 0:02:44]} c6 {[%emt 0:19:15]} (11... Re8 $11 {keeps the balance.}) 12. Nf5 $16 {[%emt 0:01:37]} Bc7 {[%emt 0:08:32] [#]} 13. Re1 $146 {[%emt 0:11:26]} ({Predecessor:} 13. Bg5 Re8 14. e4 h6 15. exd5 cxd5 16. Bxf6 Nxf6 17. Ne3 Ne4 18. Rad1 Nxc3 19. bxc3 Rxe3 20. fxe3 {1-0 (34) Safira,S (2145)-Ganesh,B (2012) Chennai 2006}) 13... Re8 {[%emt 0:06:55]} 14. Bg5 {[%emt 0:08:42]} Nf8 {[%emt 0:17:33][%cal Bd7f8,Bf8e6,Be6d4][%mdl 32]} 15. e4 {[%emt 0:15:07] White is much more active.} Ne6 {[%emt 0:01:17]} 16. Bxf6 {[%emt 0:01:01]} Qxf6 {[%emt 0:00:06]} 17. exd5 {[%emt 0:00:01]} cxd5 {[%emt 0:00:57]} 18. Ne3 {[%emt 0:09:58] Pair of Knights!} Nxd4 {[%emt 0:06:01]} 19. Qd1 {[%emt 0:00:01]} Rad8 {[%emt 0:14:20]} 20. Ncxd5 {[%emt 0:04:32]} Bxd5 {[%emt 0:00:08]} 21. Nxd5 {[%emt 0:00:06]} Rxe1+ {[%emt 0:00:14]} 22. Qxe1 {[%emt 0:00:09]} Qe5 {[%emt 0:00:19]} 23. Qxe5 {[%emt 0:05:37]} Bxe5 {[%emt 0:00:07]} 24. Re1 {[%emt 0:00:30]} Bf6 {[%emt 0:02:23]} 25. Nxb6 {[%emt 0:00:18]} Ne6 {[%emt 0:00:42]} 26. b4 {[%emt 0:25:25]} Rd3 {[%emt 0:00:57]} 27. Nc4 {[%emt 0:00:00]} g6 {[%emt 0:00:53]} 28. Bb7 {[%emt 0:00:00]} Rc3 {[%emt 0:00:37]} 29. Re4 {[%emt 0:00:00]} Nc7 {[%emt 0:00:15] [#]} 30. a4 $1 {[%emt 0:00:00]} Rb3 {[%emt 0:00:22]} 31. Ne3 {[%emt 0:00:29]} a5 {[%emt 0:00:52]} (31... Kf8 $16 32. Kg2 Bg7) 32. b5 $18 {[%emt 0:00:28]} Ne6 {[%emt 0:00:28]} 33. Bd5 {[%emt 0:00:16][%csl LRb3,LRe6]} Rb1+ {[%emt 0:00:03]} 34. Kg2 {[%emt 0:00:01]} Nc5 {[%emt 0:00:11]} 35. Rc4 {[%emt 0:00:10]} Be7 {[%emt 0:01:26]} 36. Rf4 {[%emt 0:00:51]} Bg5 {[%emt 0:00:33]} 37. Rxf7 {[%emt 0:00:30]} Bxe3 {[%emt 0:00:03]} 38. fxe3 {[%emt 0:01:10][%mdl 4096] Endgame KRB-KRN} Kh8 {[%emt 0:00:12]} 39. Ra7 {[%emt 0:00:56]} Nxa4 {[%emt 0:00:34]} 40. Rxa5 {[%emt 0:00:01]} Nb6 {[%emt 0:00:27]} 41. Bc6 {[%emt 0:00:24]} Nc4 {[%emt 0:00:33]} 42. Ra8+ {[%emt 0:00:37]} Kg7 {[%emt 0:00:04]} 43. Ra7+ {[%emt 0:00:47]} Kh6 {[%emt 0:00:21]} (43... Kf6 $142 44. Rxh7 Nxe3+ 45. Kf3 Nc4) 44. Kf3 {[%emt 0:00:20] h4 is the strong threat.} Nd6 {[%emt 0:00:28]} 45. h4 {[%emt 0:01:54]} Nxb5 {[%emt 0:01:16]} 46. Bxb5 {[%emt 0:00:31]} Rxb5 {[%emt 0:00:05] KR-KR} 47. g4 {[%emt 0:00:01] Prevents Rf5+. White threatens g5+ and mate.} g5 {[%emt 0:00:09]} 48. h5 {[%emt 0:00:31]} Rb3 {[%emt 0:00:27][%cal Ob3e3]} 49. Ra6+ {[%emt 0:00:12]} Kg7 {[%emt 0:00:05]} 50. Ke4 {[%emt 0:01:06] Strongly threatening Ra7+.} Rb4+ $2 {[%emt 0:00:07][%mdl 8192] [#]} (50... h6 $16 51. Rg6+ Kh7) 51. Kf5 $1 {[%emt 0:00:03]} Rb5+ {[%emt 0:00:07]} 52. Ke6 {[%emt 0:00:16]} h6 {[%emt 0:02:14]} 53. Ra7+ {[%emt 0:00:01]} Kg8 {[%emt 0:00:58]} 54. Ra8+ {[%emt 0:00:01]} (54. e4 $142 Rb4 55. Kf5 Kh8 56. e5 Kg8 57. Kf6 Rf4+ 58. Kg6 Kf8 59. Kxh6 Rxg4 60. Kg6) 54... Kg7 {[%emt 0:00:10]} 55. Ra7+ {[%emt 0:00:03]} (55. Rd8 $18 Rb3 56. Rd7+ Kf8 57. e4) 55... Kg8 $1 {[%emt 0:00:06]} 56. e4 {[%emt 0:00:24]} Rb6+ {[%emt 0:01:12]} 57. Kf5 {[%emt 0:00:09]} Kf8 {[%emt 0:00:18]} 58. Rh7 {[%emt 0:01:30]} Ra6 {[%emt 0:00:30]} 59. e5 {[%emt 0:00:24]} Kg8 {[%emt 0:00:33]} 60. Rb7 {[%emt 0:01:38]} Kf8 {[%emt 0:00:37]} 61. Rb8+ {[%emt 0:00:42]} (61. e6 $142 Ra4 62. Rh7 Rf4+ 63. Ke5 Rf1 64. Rxh6 Rh1 65. Rf6+ Ke8 66. Rf7) 61... Kg7 {[%emt 0:00:43]} 62. Rb7+ {[%emt 0:00:01]} Kf8 {[%emt 0:00:09]} 63. Rh7 {[%emt 0:01:01]} Kg8 $1 {[%emt 0:00:18]} 64. Rd7 {[%emt 0:00:02]} Ra4 {[%emt 0:00:53]} 65. Kg6 {[%emt 0:00:53][%cal Rd7d8]} Kf8 {[%emt 0:00:12]} 66. Kxh6 {[%emt 0:00:40]} Rxg4 {[%emt 0:00:06]} 67. Kg6 {[%emt 0:00:09]} Rh4 {[%emt 0:01:20]} 68. Kxg5 {[%emt 0:00:28]} Rh1 {[%emt 0:00:17]} 69. h6 {[%emt 0:00:23]} Kg8 {[%emt 0:00:37]} 70. Rd8+ {[%emt 0:00:29]} Kh7 {[%emt 0:00:21]} 71. Rd7+ {[%emt 0:01:11]} Kg8 {[%emt 0:00:07]} 72. e6 {[%emt 0:00:09]} Rg1+ {[%emt 0:00:54]} 73. Kf6 {[%emt 0:00:05]} Rf1+ {[%emt 0:00:31]} 74. Kg6 {[%emt 0:00:01]} Rg1+ {[%emt 0:00:21]} 75. Kf6 {[%emt 0:00:00]} Rf1+ {[%emt 0:00:15]} 76. Ke7 {[%emt 0:00:02] White mates.} Ra1 {[%emt 0:00:54]} 77. Rc7 {[%emt 0:01:23]} Rd1 {[%emt 0:00:46]} 78. Ke8 {[%emt 0:01:09]} Rd2 {[%emt 0:00:39]} 79. Rg7+ {[%emt 0:01:10]} Kh8 {[%emt 0:00:05]} 80. Rg6 {[%emt 0:00:36]} Kh7 {[%emt 0:00:41]} 81. Kf7 {[%emt 0:00:05]} Rd8 {[%emt 0:00:42]} 82. e7 {[%emt 0:00:41]} Ra8 {[%emt 0:00:06]} 83. Rd6 {[%emt 0:00:22]} Rf8+ {[%emt 0:00:50]} 84. exf8=N+ {[%emt 0:00:36] Weighted Error Value: White=0.23 (precise) /Black=0.43} (84. exf8=B $142 Kh8 85. h7 Kxh7 86. Rh6#) 1-0

[Event "New York Summer GM-A 2022"]
[Site "New York"]
[Date "2022.07.08"]
[Round "1.2"]
[White "Korley, Kassa"]
[Black "Williams, Justus"]
[Result "1/2-1/2"]
[ECO "E15"]
[WhiteElo "2421"]
[BlackElo "2390"]
[Annotator "TA"]
[PlyCount "139"]
[EventDate "2022.07.08"]
[EventType "tourn"]
[EventCountry "USA"]
[SourceTitle "playchess.com"]
[Source "ChessBase"]
[SourceQuality "1"]
[TimeControl "5400+30"]

{[%evp 13,139,12,19,23,22,42,27,28,31,32,29,40,49,39,38,22,23,17,21,23,21,16,31,24,25,20,25,27,24,24,85,85,85,85,109,109,109,112,110,110,118,61,57,57,60,63,66,33,72,72,130,135,117,120,125,112,328,258,258,258,258,251,251,251,251,177,177,162,162,162,162,143,266,166,490,281,510,491,642,633,604,575,1545,754,1963,745,840,281,281,281,281,281,281,0,281,0,281,281,281,0,0,0,281,281,281,281,29971,29971,29971,29971,29971,29970,29971,29970,29970,0,29971,0,0,0,29969,0,0,0,0,0,0,0]} 1. Nf3 {[%emt 0:00:03]} Nf6 {[%emt 0:02:49]} 2. d4 {[%emt 0:00:10]} e6 {[%emt 0:00:18]} 3. c4 {[%emt 0:00:14]} b6 {[%emt 0:00:52]} 4. g3 {[%emt 0:00:02]} Ba6 {[%emt 0:00:34]} 5. b3 {[%emt 0:00:11]} d5 {[%emt 0:00:34]} 6. Bg2 {[%emt 0:04:49]} Bb4+ {[%emt 0:02:07]} 7. Bd2 {[%emt 0:00:36]} Bd6 {[%emt 0:00:58]} 8. O-O {[%emt 0:00:44] E15: Queen's Indian: 4 g3 sidelines, 4 g3 Ba6 and 4 g3 Bb7 early deviations.} Nbd7 {[%emt 0:01:22]} 9. Nc3 {[%emt 0:05:03]} O-O {[%emt 0:09:40]} 10. e4 {[%emt 0:08:27] White has an edge.} Nxe4 {[%emt 0:09:10]} 11. Nxe4 {[%emt 0:00:05][%mdl 64] Remove Defender} dxe4 {[%emt 0:00:09]} 12. Ng5 {[%emt 0:00:03]} Nf6 {[%emt 0:00:52]} 13. Nxe4 {[%emt 0:02:08]} Rb8 {[%emt 0:02:50]} 14. Qc2 {[%emt 0:10:42]} Bb7 {[%emt 0:03:03] [#]} 15. Rad1 $146 {[%emt 0:02:02]} ({Predecessor:} 15. Nxf6+ Qxf6 16. Bxb7 Rxb7 17. Qe4 Rbb8 18. Be3 Rfd8 19. Qc6 e5 20. Rad1 exd4 21. Rxd4 {½-½ (30) Xu,Y (2410)-Romanov,E (2636) Doha 2014}) 15... Bxe4 {[%emt 0:02:23]} 16. Bxe4 {[%emt 0:00:19]} Nxe4 {[%emt 0:00:09]} 17. Qxe4 {[%emt 0:00:03]} Qf6 {[%emt 0:00:27]} 18. Be3 {[%emt 0:01:43]} Qe7 {[%emt 0:03:33]} 19. Qc6 $1 {[%emt 0:06:02] And now c5 would win.} Qe8 {[%emt 0:01:04]} 20. Qf3 {[%emt 0:00:07]} Qe7 {[%emt 0:00:44]} 21. Rd3 {[%emt 0:03:24]} c5 {[%emt 0:07:13]} (21... Qd7 $11 {remains equal.}) 22. Rfd1 $16 {[%emt 0:05:39]} cxd4 {[%emt 0:10:13]} 23. Rxd4 {[%emt 0:00:06]} Rbd8 {[%emt 0:04:06]} 24. Qc6 {[%emt 0:04:47][%cal Rd4d6]} Be5 {[%emt 0:03:55]} 25. Rd7 {[%emt 0:09:34]} Rxd7 {[%emt 0:00:41]} 26. Rxd7 {[%emt 0:03:19]} Qa3 {[%emt 0:00:17]} 27. Qa4 {[%emt 0:18:41]} (27. c5 $16) 27... Qxa4 $14 {[%emt 0:00:51]} 28. bxa4 {[%emt 0:00:01][%mdl 4096] Endgame KRB-KRB} Ra8 {[%emt 0:04:56]} 29. a5 {[%emt 0:00:24]} bxa5 {[%emt 0:01:06]} 30. Bxa7 {[%emt 0:02:19] White is more active.} g5 {[%emt 0:02:28]} 31. Bb6 {[%emt 0:01:18]} Kg7 {[%emt 0:02:13]} (31... Bf6 $142) 32. Rd8 {[%emt 0:02:38]} Ra6 {[%emt 0:00:36]} 33. c5 {[%emt 0:00:05]} a4 {[%emt 0:00:44]} 34. Kf1 $1 {[%emt 0:01:33] Threatens to win with Ke2.} Bc3 $2 {[%emt 0:02:18] [#]} (34... a3 $16) 35. c6 $1 {[%emt 0:02:37] Black must now prevent c7.} Rxb6 $18 {[%emt 0:01:48] KRB-KR} 36. c7 {[%emt 0:00:03]} Rc6 {[%emt 0:00:09]} (36... Rb1+ $2 37. Kg2 Bf6 38. c8=Q $18) 37. c8=Q {[%emt 0:00:04]} Rxc8 {[%emt 0:00:04]} 38. Rxc8 {[%emt 0:00:03] KR-KB} Bb2 {[%emt 0:00:09]} 39. Ke2 {[%emt 0:00:07]} h5 {[%emt 0:00:32]} 40. Kd3 {[%emt 0:00:39]} g4 {[%emt 0:02:32]} 41. Rb8 {[%emt 0:02:02]} a3 {[%emt 0:03:21]} 42. Kc2 {[%emt 0:00:34]} Bd4 {[%emt 0:01:37]} (42... Kf6 $16 43. Kd3 Kf5) 43. Rb3 {[%emt 0:01:50]} Bxf2 $2 {[%emt 0:00:52]} (43... Bc5 {is tougher.} 44. Kd3 Kg6) 44. Rxa3 {[%emt 0:00:03]} Bg1 $2 {[%emt 0:00:25]} (44... h4 {was called for.}) 45. Kd2 {[%emt 0:02:31]} Bxh2 {[%emt 0:01:40][%cal Oh5h4] Hoping for ...h4!} 46. Ke2 {[%emt 0:00:02]} Bg1 {[%emt 0:00:52]} 47. Rb3 {[%emt 0:00:08]} f5 {[%emt 0:00:38][%cal Bf7f5,Bf5f4][%mdl 32]} 48. a4 {[%emt 0:00:05]} Kf6 {[%emt 0:03:41]} 49. a5 {[%emt 0:00:03]} (49. Kf1 $142 Ba7 50. a5) 49... e5 {[%emt 0:09:16]} 50. a6 $2 {[%emt 0:00:14]} (50. Kf1 Ba7 51. a6) 50... f4 {[%emt 0:00:02]} 51. Kf1 $1 {[%emt 0:02:57]} Ba7 {[%emt 0:01:00]} (51... Bd4 $2 52. gxf4 exf4 53. Rb4 $18) 52. Rb7 {[%emt 0:00:07]} Be3 {[%emt 0:00:04]} 53. Rb3 {[%emt 0:04:19][%cal Ob3e3] Rxe3! would kill now.} Ba7 {[%emt 0:00:11]} (53... Bd4 54. gxf4 exf4 55. Rb4 $18) 54. Rb7 {[%emt 0:00:16]} Be3 {[%emt 0:00:02]} 55. gxf4 {[%emt 0:00:44]} exf4 {[%emt 0:00:58]} 56. Rb3 $2 {[%emt 0:00:35]} (56. a7 $1 $18 {[%cal Ra7a8]} Bxa7 57. Rxa7) 56... Ba7 $11 {[%emt 0:00:18]} 57. Rb7 $2 {[%emt 0:00:03][%mdl 8192]} (57. Rb4 $11 f3 58. Rb7) 57... Be3 $18 {[%emt 0:00:09]} 58. a7 $1 {[%emt 0:01:12]} Bxa7 {[%emt 0:00:49]} 59. Rxa7 {[%emt 0:00:01] Threatening mate with Rh7. KR-K3P} h4 $2 {[%emt 0:01:15]} (59... Kg6 $18 60. Kg2 Kf6 61. Ra6+ Kg7) 60. Ra6+ {[%emt 0:01:08]} Kf5 {[%emt 0:00:18]} 61. Ra5+ {[%emt 0:00:05]} Ke4 {[%emt 0:00:51]} 62. Ra4+ {[%emt 0:00:03]} Ke3 {[%emt 0:00:12]} 63. Ra3+ {[%emt 0:00:10]} Ke4 {[%emt 0:00:04]} 64. Ra4+ {[%emt 0:01:02]} Ke3 {[%emt 0:00:04] [#]} 65. Kg1 $2 {[%emt 0:00:52]} (65. Kg2 $1 h3+ 66. Kh2 g3+ 67. Kxh3 Kf3 68. Ra5 Kf2 69. Ra3 g2 70. Ra2+ Kf3 71. Rxg2) 65... Kf3 $11 {[%emt 0:01:58]} 66. Kh2 {[%emt 0:00:39]} Ke3 $2 {[%emt 0:01:01][%mdl 8192] [#]} (66... g3+ $11 67. Kh3 Ke3) 67. Ra3+ $2 {[%emt 0:00:20]} (67. Kg2 $1 {mates} h3+ 68. Kh2 Kf3 69. Ra8 Kf2 70. Rb8 Ke2 71. Rg8 f3 72. Kg3) 67... Kf2 {[%emt 0:00:22] The position is equal.} 68. Ra2+ {[%emt 0:00:03]} Ke3 {[%emt 0:00:20]} 69. Ra3+ {[%emt 0:00:55]} Kf2 {[%emt 0:00:09]} 70. Ra2+ {[%emt 0:00:48] Weighted Error Value: White=0.34/Black=0.35} 1/2-1/2

[Event "New York Summer GM-A 2022"]
[Site "New York"]
[Date "2022.07.08"]
[Round "1.3"]
[White "Kaliksteyn, Alexander"]
[Black "Ostrovskiy, Aleksandr"]
[Result "1/2-1/2"]
[ECO "D02"]
[WhiteElo "2380"]
[BlackElo "2392"]
[Annotator "TA"]
[PlyCount "57"]
[EventDate "2022.07.08"]
[EventType "tourn"]
[EventCountry "USA"]
[SourceTitle "playchess.com"]
[Source "ChessBase"]
[SourceQuality "1"]
[TimeControl "5400+30"]

{[%evp 9,57,0,12,12,14,1,8,3,4,14,12,-2,0,0,-8,-6,0,0,4,0,0,0,0,0,0,0,0,0,0,-56,-31,-39,-31,-40,-33,-47,-36,-36,-36,-44,-33,-28,-28,-40,-34,-42,-31,-35,-28,-287]} 1. d4 {[%emt 0:00:30]} d5 {[%emt 0:06:28]} 2. Nf3 {[%emt 0:00:00]} Nf6 {[%emt 0:01:25]} 3. Bf4 {[%emt 0:00:06]} c5 {[%emt 0:02:40]} 4. e3 {[%emt 0:00:15]} e6 {[%emt 0:01:05]} 5. Nbd2 {[%emt 0:00:27]} Qb6 {[%emt 0:02:33]} 6. Rb1 {[%emt 0:04:47] D02: 1 d4 d5 2 Nf3 sidelines, including 2...Nf6 3 g3 and 2...Nf6 3 Bf4.} Bd7 {[%emt 0:00:30] [#] 6...Bd6 is the modern continuation.} 7. h3 $146 {[%emt 0:31:07]} ({Predecessor:} 7. Be2 Bb5 8. c4 dxc4 9. O-O Be7 10. Nxc4 Bxc4 11. Bxc4 O-O 12. dxc5 Bxc5 13. Ne5 {0-1 (32) Firouzja,A (2804)-Karjakin,S (2743) Warsaw 2021}) 7... cxd4 {[%emt 0:03:49]} 8. exd4 {[%emt 0:05:53] The position is equal.} Bb5 {[%emt 0:00:42]} 9. Bxb5+ {[%emt 0:00:34]} Qxb5 {[%emt 0:00:12]} 10. Qe2 {[%emt 0:06:45]} Qxe2+ {[%emt 0:09:53]} 11. Kxe2 {[%emt 0:00:08]} Nc6 {[%emt 0:00:02]} 12. c3 {[%emt 0:05:32]} Be7 {[%emt 0:05:20]} 13. Ne5 {[%emt 0:01:44]} Rc8 {[%emt 0:06:38]} 14. Kd3 {[%emt 0:13:04]} Nd7 {[%emt 0:02:28][%cal Bf6d7,Bd7b6,Bb6d5][%mdl 32]} 15. Nxc6 {[%emt 0:03:24]} Rxc6 {[%emt 0:03:35]} 16. c4 {[%emt 0:02:10]} dxc4+ {[%emt 0:22:31]} 17. Nxc4 {[%emt 0:00:06]} Ra6 {[%emt 0:00:27] Inhibits Na5.} 18. Rhc1 {[%emt 0:03:02][%cal Oc4d6] Nd6+! is the strong threat.} O-O {[%emt 0:02:08]} 19. Ne5 {[%emt 0:04:23]} (19. a3 $11) 19... Nb6 {[%emt 0:03:47]} ({Much worse is} 19... Nxe5+ 20. dxe5 Bd8 21. a3 $11) (19... Nb8 $5 {[%cal Re7d6]}) 20. a3 {[%emt 0:06:00]} f6 {[%emt 0:07:07]} 21. Nf3 {[%emt 0:00:50]} Nd5 {[%emt 0:00:39]} 22. Bd2 {[%emt 0:00:06]} Rd8 {[%emt 0:00:55]} 23. Rc2 {[%emt 0:00:27]} Kf7 {[%emt 0:01:59]} 24. Rbc1 {[%emt 0:00:07]} g5 {[%emt 0:04:27]} 25. Rc8 {[%emt 0:00:18]} Rad6 {[%emt 0:01:33][%cal Ba6d6,Bd6d8,Bd8g8][%mdl 32]} 26. Rxd8 {[%emt 0:01:25]} Rxd8 {[%emt 0:00:51]} 27. Be3 {[%emt 0:01:06]} h5 {[%emt 0:01:09]} 28. Nd2 {[%emt 0:00:17]} Rg8 {[%emt 0:08:44]} 29. Ke4 $2 {[%emt 0:10:27][%mdl 40960] Weighted Error Value: White=0.08 (flawless) /Black=0.04 (flawless) . An unexpected result.} (29. Ne4 $11) 1/2-1/2

[Event "New York Summer GM-A 2022"]
[Site "New York"]
[Date "2022.07.08"]
[Round "1.4"]
[White "Khamrakulov, Djurabek"]
[Black "Song, Michael"]
[Result "1/2-1/2"]
[ECO "B22"]
[WhiteElo "2492"]
[BlackElo "2409"]
[Annotator "TA"]
[PlyCount "35"]
[EventDate "2022.07.08"]
[EventType "tourn"]
[EventCountry "USA"]
[SourceTitle "playchess.com"]
[Source "ChessBase"]
[SourceQuality "1"]
[TimeControl "5400+30"]

{[%evp 15,35,-4,0,0,0,0,-3,-6,11,0,0,0,0,0,5,5,6,8,7,0,0,0]} 1. e4 {[%emt 0:22:44][%cal Be2e4,Be4e5][%mdl 32]} c5 {[%emt 0:00:43]} 2. c3 {[%emt 0:00:08]} Nf6 {[%emt 0:00:10][%cal Bg8f6,Bf6d5,Bd5b4][%mdl 32]} 3. e5 {[%emt 0:00:05]} Nd5 {[%emt 0:00:13]} 4. Nf3 {[%emt 0:00:02]} Nc6 {[%emt 0:00:46]} 5. d4 {[%emt 0:00:31]} cxd4 {[%emt 0:00:34]} 6. cxd4 {[%emt 0:00:02]} d6 {[%emt 0:01:02]} 7. Bc4 {[%emt 0:00:02]} dxe5 $1 {[%emt 0:01:29][%mdl 4] is currently scoring better than 7...Nb6.} 8. dxe5 {[%emt 0:00:02]} Ndb4 {[%emt 0:00:16] With the idea ...Qxd1+. The position is equal.} 9. O-O {[%emt 0:00:02] And now Qe2 would win. B22: Sicilian: 2 c3.} Qxd1 {[%emt 0:00:14]} 10. Rxd1 {[%emt 0:00:01]} Bg4 {[%emt 0:00:18] [#] Strongly threatening ...Nc2.} (10... Nc2 11. Na3 Nxa3 12. bxa3 $16) 11. Nc3 {[%emt 0:02:09]} e6 {[%emt 0:00:11]} (11... Bxf3 $5 12. gxf3 Nxe5 $11) 12. Bf4 {[%emt 0:09:29]} Bxf3 {[%emt 0:16:51]} 13. gxf3 {[%emt 0:00:22]} g5 {[%emt 0:08:24] [#]} 14. Bg3 $146 {[%emt 0:09:38]} ({Much worse is} 14. Bxg5 Rg8 15. h4 (15. f4 h6 $17) 15... h6 $17) ({Predecessor:} 14. Ne4 Be7 15. Bg3 Nc2 16. Rac1 N2d4 17. f4 gxf4 18. Bxf4 Rg8+ 19. Ng3 Rg4 20. Be3 {½-½ (63) Garcia Blanco,O (2359)-Hernando Rodrigo,J (2319) Vecindario 2020}) 14... Bg7 {[%emt 0:02:58]} 15. a3 {[%emt 0:01:14]} Nc2 {[%emt 0:02:41]} 16. Rac1 {[%emt 0:00:03] [#] Threatens to win with Bb5.} N2d4 {[%emt 0:00:25][%cal Oc6e5]} 17. Nb5 {[%emt 0:00:20]} Rd8 {[%emt 0:09:55]} 18. Nxd4 {[%emt 0:52:36] An interesting draw.  Weighted Error Value: White=0.01 (flawless) /Black=0.02 (flawless)} 1/2-1/2

[Event "New York Summer GM-A 2022"]
[Site "New York"]
[Date "2022.07.08"]
[Round "1.5"]
[White "Saric, Ante"]
[Black "Dragun, Kamil"]
[Result "1/2-1/2"]
[WhiteElo "2510"]
[BlackElo "2563"]
[Annotator "TA"]
[PlyCount "45"]
[EventDate "2022.07.08"]
[EventType "tourn"]
[EventCountry "USA"]
[SourceTitle "playchess.com"]
[Source "ChessBase"]
[SourceQuality "1"]
[TimeControl "5400+30"]

{[%evp 15,16,21,24]} 1. c4 {[%emt 0:00:30]} Nf6 {[%emt 0:00:30]} 2. Nc3 {[%emt 0:00:30]} g6 {[%emt 0:00:30]} 3. g3 {[%emt 0:00:30]} Bg7 {[%emt 0:00:30]} 4. Bg2 {[%emt 0:00:30]} O-O {[%emt 0:00:30]} 5. e4 {[%emt 0:00:30]} d6 {[%emt 0:00:30]} 6. Nge2 {[%emt 0:00:30]} e5 {[%emt 0:00:30]} 7. O-O {[%emt 0:00:30]} Nc6 {[%emt 0:00:30]} 8. d3 {[%emt 0:00:30]} Nd7 $1 {[%emt 0:00:30][%mdl 4] [#] is currently scoring better than 8...Be6.} {Predecessor:} 9. f4 $146 {A26: English Opening vs King's Indian with ...Nc6 and d3.} f5 10. exf5 gxf5 11. h3 Nc5 12. Kh2 Kh8 13. Be3 Ne6 14. Qd2 Ncd4 15. Rae1 c6 16. fxe5 dxe5 17. Bh6 Bxh6 18. Qxh6 Nc2 19. Rc1 Qxd3 20. Rxc2 Qxc2 21. Be4 Qxb2 22. Rxf5 Bd7 23. Rf6 {1-0 (23) Mamedyarov,S (2770)-Ivic,V (2581) Chess.com INT 2021} 1/2-1/2

[Event "New York Summer GM-A 2022"]
[Site "New York"]
[Date "2022.07.08"]
[Round "2.1"]
[White "Zhou, Liran"]
[Black "Dragun, Kamil"]
[Result "1/2-1/2"]
[ECO "B40"]
[WhiteElo "2393"]
[BlackElo "2563"]
[Annotator "TA"]
[PlyCount "57"]
[EventDate "2022.07.08"]
[EventType "tourn"]
[EventCountry "USA"]
[SourceTitle "playchess.com"]
[Source "ChessBase"]
[SourceQuality "1"]
[TimeControl "5400+30"]

{[%evp 9,57,4,32,20,31,31,21,27,29,11,28,16,22,20,43,18,37,29,44,20,21,2,5,0,0,0,0,0,5,0,0,0,47,47,77,12,25,32,32,32,37,33,35,33,39,-1489,-714,-703,89,-724]} 1. e4 {[%emt 0:01:17]} c5 {[%emt 0:00:12]} 2. Nf3 {[%emt 0:00:06]} e6 {[%emt 0:00:04]} 3. b3 {[%emt 0:00:04]} Nc6 {[%emt 0:01:58]} 4. Bb2 {[%emt 0:00:20]} a6 {[%emt 0:00:06]} 5. g3 {[%emt 0:03:12]} d6 {[%emt 0:04:12]} 6. d4 {[%emt 0:03:01] B40: Sicilian: 2...e6, Unusual lines.} cxd4 {[%emt 0:05:14]} 7. Nxd4 {[%emt 0:00:07]} Bd7 {[%emt 0:00:11]} 8. Bg2 {[%emt 0:02:21] The position is equal.} Nf6 {[%emt 0:00:07]} 9. O-O {[%emt 0:01:45]} Be7 {[%emt 0:00:08]} 10. c4 {[%emt 0:03:04]} Nxd4 {[%emt 0:05:58] [#]} 11. Bxd4 $146 {[%emt 0:05:16]} ({Predecessor:} 11. Qxd4 Bc6 12. Nc3 O-O 13. Rad1 Qc7 14. Kh1 Rac8 15. f4 Rfd8 16. f5 b5 {½-½ (16) Gesing,O (2146)-Schmidt,W (2284) Bayern 2007}) 11... e5 {[%emt 0:00:56]} 12. Be3 {[%emt 0:02:26]} O-O {[%emt 0:07:50]} 13. Nc3 {[%emt 0:05:20]} b5 {[%emt 0:00:22]} 14. cxb5 {[%emt 0:00:22]} axb5 {[%emt 0:00:02]} 15. Bg5 {[%emt 0:01:10]} Qb8 {[%emt 0:06:00]} 16. Bxf6 {[%emt 0:02:47]} Bxf6 {[%emt 0:00:02]} 17. Nd5 {[%emt 0:00:17]} Bd8 {[%emt 0:00:01]} 18. Qd3 {[%emt 0:20:16]} Ra3 {[%emt 0:01:04]} 19. Rfc1 {[%emt 0:08:04]} Be6 {[%emt 0:20:05]} 20. Rc2 {[%emt 0:04:20]} Qb7 {[%emt 0:09:19]} (20... b4 $11) 21. Rd1 $14 {[%emt 0:05:27]} Ba5 {[%emt 0:05:24] [#]} 22. Qe3 {[%emt 0:10:54] White is more active.} (22. Bf1 $1 $16) 22... Ra8 $11 {[%emt 0:06:37]} 23. Bf1 {[%emt 0:03:00]} Bd8 {[%emt 0:05:00]} 24. Qe2 {[%emt 0:01:52]} b4 {[%emt 0:06:20] Prevents Nc3.} 25. Qd2 {[%emt 0:05:23]} Bxd5 {[%emt 0:06:22]} 26. Qxd5 {[%emt 0:00:21]} Qxd5 {[%emt 0:00:10]} 27. Rd3 {[%emt 0:11:28][%mdl 8192] [#]} (27. Rxd5 $14 Rxa2 28. Rxa2 Rxa2 29. Rxd6) 27... Qd4 28. Rxd4 {[%emt 0:00:00]} Rxa2 $2 {[%emt 0:00:55]} ({Better is} 28... exd4 $19 29. Rc6 Rxa2 30. Rxd6 Bf6) 29. Rd5 $2 {[%emt 0:00:00][%mdl 40960] Weighted Error Value: White=0.36/Black=0.50. An unexpected result.} 1/2-1/2